fUSD/lending_fUSD_20260426
["ID","MTS","AMOUNT","RATE_DAILY","PERIOD"]
[421169696,1777188911905,-392.75,0.00043053,30]
[421169697,1777188911936,-570.49,0.00043053,30]
[421169698,1777188911966,-151.0,0.00043053,30]
[421169699,1777188911998,-151.46,0.00043053,30]
[421169700,1777188912029,-568.31,0.00043053,30]
[421169701,1777188912060,-638.43,0.00043053,30]
[421169702,1777188912092,-183.44,0.00043053,30]
[421169703,1777188912124,-151.0,0.00043053,30]
[421169704,1777188912155,-151.0,0.00043053,30]
[421169705,1777188912191,-471.15899604,0.00043053,120]
[421169706,1777188912238,-100000.0,0.00043053,30]
[421169707,1777188912272,-500.0,0.00043053,120]
[421169708,1777188912332,-487.0,0.00043053,120]
[421169709,1777188912368,-487.0,0.00043053,120]
[421169710,1777188912399,-487.0,0.00043053,120]
[421169711,1777188912430,-487.0,0.00043053,120]
[421169712,1777188912460,-487.0,0.00043053,120]
[421169713,1777188912490,-487.0,0.00043053,120]
[421169714,1777188912519,-487.0,0.00043053,120]
[421169715,1777188912549,-487.0,0.00043053,120]
[421169716,1777188912578,-487.0,0.00043053,120]
[421169717,1777188912609,-487.0,0.00043053,120]
[421169718,1777188912640,-487.0,0.00043053,120]
[421169719,1777188912670,-487.0,0.00043053,120]
[421169720,1777188912702,-487.0,0.00043053,120]
[421169721,1777188912734,-487.0,0.00043053,120]
[421169722,1777188912766,-487.0,0.00043053,120]
[421169723,1777188912797,-487.0,0.00043053,120]
[421169724,1777188912828,-487.0,0.00043053,120]
[421169725,1777188912858,-487.0,0.00043053,120]
[421169726,1777188913259,-487.0,0.00043053,120]
[421169727,1777188913290,-487.0,0.00043053,120]
[421169728,1777188913321,-487.0,0.00043053,120]
[421169729,1777188913353,-487.0,0.00043053,120]
[421169730,1777188913382,-487.0,0.00043053,120]
[421169731,1777188913412,-487.0,0.00043053,120]
[421169732,1777188913441,-487.0,0.00043053,120]
[421169733,1777188913470,-487.0,0.00043053,120]
[421169734,1777188913499,-570.17,0.00043053,30]
[421169735,1777188913529,-151.0,0.00043053,30]
[421169736,1777188913557,-151.0,0.00043053,30]
[421169737,1777188913585,-183.45,0.00043053,30]
[421169738,1777188913614,-151.36,0.00043053,30]
[421169739,1777188913643,-568.31,0.00043053,30]
[421169740,1777188913673,-476.35,0.00043053,30]
[421169741,1777188913703,-392.51,0.00043053,30]
[421169742,1777188913732,-638.53,0.00043053,30]
[421169743,1777188913762,-151.0,0.00043053,30]
[421169744,1777188913801,-1482914.89487408,0.00043053,30]
[421169745,1777188913844,-478.09,0.00043053,30]
[421169746,1777188913873,-392.7,0.00043053,30]
[421169747,1777188913902,-151.0,0.00043053,30]
[421169748,1777188913931,-151.0,0.00043053,30]
[421169749,1777188913960,-638.38,0.00043053,30]
[421169750,1777188913989,-1639.06,0.00043053,30]
[421169751,1777188914018,-570.55,0.00043053,30]
[421169752,1777188914047,-151.35,0.00043053,30]
[421169753,1777188914076,-183.19,0.00043053,30]
[421169754,1777188914105,-151.0,0.00043053,30]
[421169755,1777188914133,-151.0,0.00043053,30]
[421169756,1777188914162,-568.28,0.00043053,30]
[421169757,1777188914190,-151.0,0.00043053,30]
[421169758,1777188914220,-151.0,0.00043053,30]
[421169759,1777188914251,-3631.57161207,0.00043053,120]
[421169760,1777188914280,-151.0,0.00043053,30]
[421169761,1777188914309,-10000.0,0.00043053,120]
[421169762,1777188914337,-10000.0,0.00043053,120]
[421169763,1777188914364,-10000.0,0.00043053,120]
[421169764,1777188914393,-10000.0,0.00043053,120]
[421169765,1777188914421,-10000.0,0.00043053,120]
[421169766,1777188914451,-1149.64173904,0.00043053,120]
[421169767,1777188914479,-151.08,0.00043053,30]
[421169768,1777188914508,-151.0,0.00043053,30]
[421169769,1777188914536,-151.0,0.00043053,30]
[421169770,1777188914564,-570.57,0.00043053,30]
[421169771,1777188914594,-151.06,0.00043053,30]
[421169772,1777188914622,-151.0,0.00043053,30]
[421169773,1777188914650,-478.09,0.00043053,30]
[421169774,1777188914679,-151.0,0.00043053,30]
[421169775,1777188914709,-183.45,0.00043053,30]
[421169776,1777188914738,-296.4,0.00043053,30]
[421169777,1777188914768,-151.0,0.00043053,30]
[421169778,1777188914797,-1569.61,0.00043053,30]
[421169779,1777188914825,-392.73,0.00043053,30]
[421169780,1777188914853,-151.0,0.00043053,30]
[421169781,1777188914880,-638.2,0.00043053,30]
[421169782,1777188914910,-166.64537031,0.00043053,30]
[421169783,1777188914938,-5066.21816459,0.00043053,120]
[421169784,1777188914965,-500.0,0.00043053,120]
[421169785,1777188914994,-500.0,0.00043053,120]
[421169786,1777188915022,-151.0,0.00043053,30]
[421169787,1777188915049,-151.0,0.00043053,30]
[421169788,1777188915078,-183.44,0.00043053,30]
[421169789,1777188915105,-151.65,0.00043053,30]
[421169790,1777188915133,-637.32,0.00043053,30]
[421169791,1777188915161,-614.7737255,0.00043053,120]
[421169792,1777188915189,-151.14,0.00043053,30]
[421169793,1777188915218,-477.66,0.00043053,30]
[421169794,1777188915246,-568.11,0.00043053,30]
[421169795,1777188915274,-151.0,0.00043053,30]
[421169796,1777188915301,-151.0,0.00043053,30]
[421169797,1777188915330,-151.14,0.00043053,30]
[421169798,1777188915359,-332.2,0.00043053,30]
[421169799,1777188915386,-570.5,0.00043053,30]
[421169800,1777188915412,-12347.89262429,0.00043053,30]
[421169801,1777188915440,-151.0,0.00043053,30]
[421169802,1777188915470,-500.0,0.00043053,120]
[421169803,1777188915501,-151.4,0.00043053,30]
[421169804,1777188915529,-570.55,0.00043053,30]
[421169805,1777188915556,-151.3,0.00043053,30]
[421169806,1777188915584,-392.7,0.00043053,30]
[421169807,1777188915611,-151.0,0.00043053,30]
[421169808,1777188915638,-151.0,0.00043053,30]
[421169809,1777188915666,-183.42,0.00043053,30]
[421169810,1777188915695,-478.09,0.00043053,30]
[421169811,1777188915722,-151.0,0.00043053,30]
[421169812,1777188915750,-151.0,0.00043053,30]
[421169813,1777188915778,-638.49,0.00043053,30]
[421169814,1777188915806,-568.24,0.00043053,30]
[421169815,1777188915840,-10618.669796,0.00043053,120]
[421169816,1777188915869,-151.0,0.00043053,30]
[421169817,1777188915896,-570.55,0.00043053,30]
[421169818,1777188915923,-151.0,0.00043053,30]
[421169819,1777188915951,-392.75,0.00043053,30]
[421169820,1777188915977,-151.0,0.00043053,30]
[421169821,1777188916005,-568.31,0.00043053,30]
[421169822,1777188916032,-478.08,0.00043053,30]
[421169823,1777188916058,-151.0,0.00043053,30]
[421169824,1777188916086,-183.12,0.00043053,30]
[421169825,1777188916113,-638.49,0.00043053,30]
[421169826,1777188916142,-151.0,0.00043053,30]
[421169827,1777188916170,-183.45,0.00043053,30]
[421169828,1777188916427,-638.53,0.00043053,30]
[421169829,1777188916456,-332.3,0.00043053,30]
[421169830,1777188916485,-151.33,0.00043053,30]
[421169831,1777188916513,-478.09,0.00043053,30]
[421169832,1777188916542,-568.31,0.00043053,30]
[421169833,1777188916570,-151.77,0.00043053,30]
[421169834,1777188916599,-570.53,0.00043053,30]
[421169835,1777188916642,-1000.0,0.00043053,120]
[421169836,1777188916670,-1000.0,0.00043053,120]
[421169837,1777188916698,-1000.0,0.00043053,120]
[421169838,1777188916726,-1000.0,0.00043053,120]
[421169839,1777188916755,-1000.0,0.00043053,120]
[421169840,1777188916783,-1000.0,0.00043053,120]
[421169841,1777188916811,-1000.0,0.00043053,120]
[421169842,1777188916841,-1000.0,0.00043053,120]
[421169843,1777188916869,-1000.0,0.00043053,120]
[421169844,1777188916896,-1000.0,0.00043053,120]
[421169845,1777188916924,-1000.0,0.00043053,120]
[421169846,1777188916951,-1000.0,0.00043053,120]
[421169847,1777188916979,-1000.0,0.00043053,120]
[421169848,1777188917007,-1000.0,0.00043053,120]
[421169849,1777188917036,-1000.0,0.00043053,120]
[421169850,1777188917064,-1000.0,0.00043053,120]
[421169851,1777188917092,-1000.0,0.00043053,120]
[421169852,1777188917120,-1000.0,0.00043053,120]
[421169853,1777188917148,-1000.0,0.00043053,120]
[421169854,1777188917175,-1000.0,0.00043053,120]
[421169855,1777188917203,-1000.0,0.00043053,120]
[421169856,1777188917233,-1000.0,0.00043053,120]
[421169857,1777188917261,-1000.0,0.00043053,120]
[421169858,1777188917290,-1000.0,0.00043053,120]
[421169859,1777188917317,-1000.0,0.00043053,120]
[421169860,1777188917345,-1000.0,0.00043053,120]
[421169861,1777188917376,-1000.0,0.00043053,120]
[421169862,1777188917406,-1000.0,0.00043053,120]
[421169863,1777188917435,-1000.0,0.00043053,120]
[421169864,1777188917463,-1000.0,0.00043053,120]
[421169865,1777188917491,-1000.0,0.00043053,120]
[421169866,1777188917519,-1000.0,0.00043053,120]
[421169867,1777188917548,-1000.0,0.00043053,120]
[421169868,1777188917577,-1000.0,0.00043053,120]
[421169869,1777188917605,-507.81835889,0.00043053,120]
[421169870,1777188917633,-157.71610783,0.00043053,30]
[421169871,1777188917663,-570.49,0.00043053,30]
[421169872,1777188917692,-182.58,0.00043053,30]
[421169873,1777188917720,-568.08,0.00043053,30]
[421169874,1777188917748,-478.09,0.00043053,30]
[421169875,1777188917775,-151.0,0.00043053,30]
[421169876,1777188917804,-638.43,0.00043053,30]
[421169877,1777188917832,-392.7,0.00043053,30]
[421169878,1777188917859,-151.0,0.00043053,30]
[421169879,1777188917886,-151.32,0.00043053,30]
[421169880,1777188917917,-200.0,0.00043053,120]
[421169881,1777188917946,-151.0,0.00043053,120]
[421169882,1777188917974,-500.0,0.00043053,120]
[421169883,1777188918002,-520.0,0.00043053,120]
[421169884,1777188918030,-151.0,0.00043053,120]
[421169885,1777188918058,-200.0,0.00043053,120]
[421169886,1777188918086,-156.587,0.00043053,120]
[421169887,1777188918114,-500.0,0.00043053,120]
[421169888,1777188918141,-539.24,0.00043053,120]
[421169889,1777188918170,-156.587,0.00043053,120]
[421169890,1777188918197,-200.0,0.00043053,120]
[421169891,1777188918225,-500.0,0.00043053,120]
[421169892,1777188918253,-162.380719,0.00043053,120]
[421169893,1777188918281,-559.19188,0.00043053,120]
[421169894,1777188918309,-500.0,0.00043053,120]
[421169895,1777188918337,-183.44,0.00043053,30]
[421169896,1777188918364,-151.43,0.00043053,30]
[421169897,1777188918393,-151.0,0.00043053,30]
[421169898,1777188918421,-392.74,0.00043053,30]
[421169899,1777188918449,-570.37,0.00043053,30]
[421169900,1777188918477,-478.08,0.00043053,30]
[421169901,1777188918505,-638.08,0.00043053,30]
[421169902,1777188918532,-156.587,0.00043053,120]
[421169903,1777188918560,-151.0,0.00043053,30]
[421169904,1777188918588,-200.0,0.00043053,120]
[421169905,1777188918617,-500.0,0.00043053,120]
[421169906,1777188918645,-162.380719,0.00043053,120]
[421169907,1777188918674,-568.31,0.00043053,30]
[421169908,1777188918702,-579.88197956,0.00043053,120]
[421169909,1777188918730,-500.0,0.00043053,120]
[421169910,1777188918759,-200.0,0.00043053,120]
[421169911,1777188918788,-500.0,0.00043053,120]
[421169912,1777188918816,-601.3376128,0.00043053,120]
[421169913,1777188918844,-500.0,0.00043053,120]
[421169914,1777188918872,-500.0,0.00043053,120]
[421169915,1777188918900,-200.0,0.00043053,120]
[421169916,1777188918929,-500.0,0.00043053,120]
[421169917,1777188918957,-601.3376128,0.00043053,120]
[421169918,1777188918985,-500.0,0.00043053,120]
[421169919,1777188919013,-500.0,0.00043053,120]
[421169920,1777188919042,-151.0,0.00043053,120]
[421169921,1777188919071,-500.0,0.00043053,120]
[421169922,1777188919099,-500.0,0.00043053,120]
[421169923,1777188919128,-151.0,0.00043053,120]
[421169924,1777188919155,-500.0,0.00043053,120]
[421169925,1777188919184,-500.0,0.00043053,120]
[421169926,1777188919213,-151.0,0.00043053,120]
[421169927,1777188919242,-1030.0,0.00043053,120]
[421169928,1777188919269,-3133.1546642,0.00043053,120]
[421169929,1777188919297,-500.0,0.00043053,120]
[421169930,1777188919546,-500.0,0.00043053,120]
[421169931,1777188919579,-151.0,0.00043053,120]
[421169932,1777188919608,-1068.11,0.00043053,120]
[421169933,1777188919637,-500.0,0.00043053,120]
[421169934,1777188919666,-500.0,0.00043053,120]
[421169935,1777188919695,-1107.63007,0.00043053,120]
[421169936,1777188919724,-6888.0,0.00043053,120]
[421169937,1777188919754,-1000.0,0.00043053,30]
[421169938,1777188919783,-151.0,0.00043053,120]
[421169939,1777188919812,-500.0,0.00043053,120]
[421169940,1777188919840,-1037.0,0.00043053,30]
[421169941,1777188919869,-151.0,0.00043053,120]
[421169942,1777188919898,-7142.856,0.00043053,120]
[421169943,1777188919926,-500.0,0.00043053,120]
[421169944,1777188919954,-620.0,0.00043053,120]
[421169945,1777188919983,-1075.369,0.00043053,30]
[421169946,1777188920013,-7407.141672,0.00043053,120]
[421169947,1777188920043,-151.0,0.00043053,120]
[421169948,1777188920071,-500.0,0.00043053,120]
[421169949,1777188920099,-1181.06604505,0.00043053,30]
[421169950,1777188920126,-169.93867257,0.00043053,120]
[421169951,1777188920154,-642.94,0.00043053,120]
[421169952,1777188920183,-1148.61238259,0.00043053,120]
[421169953,1777188920211,-1115.157653,0.00043053,30]
[421169954,1777188920241,-7681.20591386,0.00043053,120]
[421169955,1777188920270,-151.0,0.00043053,120]
[421169956,1777188920298,-500.0,0.00043053,120]
[421169957,1777188920327,-666.72878,0.00043053,120]
[421169958,1777188920355,-1115.157653,0.00043053,30]
[421169959,1777188920385,-151.0,0.00043053,120]
[421169960,1777188920414,-7965.41053268,0.00043053,120]
[421169961,1777188920442,-1191.11104075,0.00043053,120]
[421169962,1777188920470,-500.0,0.00043053,120]
[421169963,1777188920498,-691.39774486,0.00043053,120]
[421169964,1777188920527,-151.0,0.00043053,120]
[421169965,1777188920556,-7965.41053268,0.00043053,120]
[421169966,1777188920584,-1191.11104075,0.00043053,120]
[421169967,1777188920612,-500.0,0.00043053,120]
[421169968,1777188920641,-691.39774486,0.00043053,120]
[421169969,1777188920670,-151.0,0.00043053,120]
[421169970,1777188920699,-500.0,0.00043053,120]
[421169971,1777188920727,-691.32,0.00043053,30]
[421169972,1777188920756,-638.53,0.00043053,30]
[421169973,1777188920785,-392.67,0.00043053,30]
[421169974,1777188920814,-477.69,0.00043053,30]
[421169975,1777188920843,-151.0,0.00043053,30]
[421169976,1777188920872,-151.0,0.00043053,30]
[421169977,1777188920900,-183.31,0.00043053,30]
[421169978,1777188920931,-151.0,0.00043053,120]
[421169979,1777188920960,-151.0,0.00043053,30]
[421169980,1777188920989,-568.28,0.00043053,30]
[421169981,1777188921020,-500.0,0.00043053,120]
[421169982,1777188921048,-500.0,0.00043053,120]
[421169983,1777188921076,-500.0,0.00043053,120]
[421169984,1777188921106,-500.0,0.00043053,120]
[421169985,1777188921136,-500.0,0.00043053,120]
[421169986,1777188921165,-500.0,0.00043053,120]
[421169987,1777188921194,-1500.0,0.00043053,120]
[421169988,1777188921223,-518.5,0.00043053,120]
[421169989,1777188921251,-1555.5,0.00043053,120]
[421169990,1777188921282,-537.6845,0.00043053,120]
[421169991,1777188921311,-1613.0535,0.00043053,120]
[421169992,1777188921341,-151.0,0.00043053,120]
[421169993,1777188921370,-537.6845,0.00043053,120]
[421169994,1777188921399,-151.0,0.00043053,120]
[421169995,1777188921428,-151.0,0.00043053,120]
[421169996,1777188921457,-151.0,0.00043053,120]
[421169997,1777188921486,-156.587,0.00043053,120]
[421169998,1777188921515,-151.0,0.00043053,120]
[421169999,1777188921544,-162.380719,0.00043053,120]
[421170000,1777188921575,-151.0,0.00043053,120]
[421170001,1777188921605,-168.3888056,0.00043053,120]
[421170002,1777188921635,-151.0,0.00043053,120]
[421170003,1777188921664,-174.61919141,0.00043053,120]
[421170004,1777188921693,-174.61919141,0.00043053,120]
[421170005,1777188921723,-251.0,0.00043053,120]
[421170006,1777188921753,-260.287,0.00043053,120]
[421170007,1777188921782,-260.287,0.00043053,120]
[421170008,1777188921811,-183.42,0.00043053,30]
[421170009,1777188921839,-151.09,0.00043053,30]
[421170010,1777188921868,-476.32,0.00043053,30]
[421170011,1777188921896,-170.0,0.00043053,120]
[421170012,1777188921925,-392.76,0.00043053,30]
[421170013,1777188921954,-568.28,0.00043053,30]
[421170014,1777188921982,-570.55,0.00043053,30]
[421170015,1777188922011,-151.0,0.00043053,30]
[421170016,1777188922041,-638.53,0.00043053,30]
[421170017,1777188922072,-176.29,0.00043053,120]
[421170018,1777188922102,-182.81273,0.00043053,120]
[421170019,1777188922131,-1000.0,0.00043053,120]
[421170020,1777188922161,-182.81273,0.00043053,120]
[421170021,1777188922192,-1000.0,0.00043053,120]
[421170022,1777188922223,-151.0,0.00043053,120]
[421170023,1777188922253,-156.587,0.00043053,120]
[421170024,1777188922285,-1000.0,0.00043053,120]
[421170025,1777188922315,-162.380719,0.00043053,120]
[421170026,1777188922346,-1000.0,0.00043053,120]
[421170027,1777188922377,-168.3888056,0.00043053,120]
[421170028,1777188922407,-1000.0,0.00043053,120]
[421170029,1777188922438,-174.61919141,0.00043053,120]
[421170030,1777188922468,-1000.0,0.00043053,120]
[421170031,1777188922498,-174.61919141,0.00043053,120]
[421170032,1777188922529,-824.0,0.00043053,30]
[421170033,1777188922558,-3298.0,0.00043053,120]
[421170034,1777188922843,-392.75,0.00043053,30]
[421170035,1777188922875,-478.05,0.00043053,30]
[421170036,1777188922908,-184.11,0.00043053,30]
[421170037,1777188922939,-570.55,0.00043053,30]
[421170038,1777188922968,-151.56,0.00043053,30]
[421170039,1777188922999,-151.47,0.00043053,30]
[421170040,1777188923029,-638.53,0.00043053,30]
[421170041,1777188923060,-569.22,0.00043053,30]
[421170042,1777188923822,13487.73,0.00043053,30]
[421170043,1777188923938,14384.58211276,0.00043053,30]
[421170044,1777188924405,28892.59,0.00043053,30]
[421170045,1777188924783,942.96842954,0.00043053,30]
[421170046,1777188926165,100000.0,0.00043053,30]
[421170047,1777188994657,-309.0,6.837e-05,2]
[421170048,1777189196992,-237.26127448,6.837e-05,2]
[421170049,1777189197016,-748.595176,6.837e-05,2]
[421170050,1777189197039,-250.0,6.837e-05,2]
[421170051,1777189197062,-241.0,6.837e-05,2]
[421170052,1777189197086,-250.0,6.84e-05,2]
[421170053,1777189197110,-443.0,6.842e-05,2]
[421170054,1777189197134,-300.0,6.842e-05,2]
[421170055,1777189197157,-150.0,6.842e-05,2]
[421170056,1777189197181,-387.49564809,6.843e-05,2]
[421170057,1777189197204,-500.0,6.843e-05,2]
[421170058,1777189197228,-500.0,6.843e-05,2]
[421170059,1777189197251,-517.55519033,6.843e-05,2]
[421170060,1777189197275,-500.0,6.843e-05,2]
[421170061,1777189197305,-126.0927111,6.843e-05,2]
[421170062,1777189200022,-373.9072889,6.843e-05,2]
[421170063,1777189200060,-500.0,6.843e-05,2]
[421170064,1777189200097,-500.0,6.843e-05,2]
[421170065,1777189200134,-500.0,6.843e-05,2]
[421170066,1777189200169,-500.0,6.843e-05,2]
[421170067,1777189200205,-500.0,6.843e-05,2]
[421170068,1777189200240,-500.0,6.843e-05,2]
[421170069,1777189200275,-450.07285929,6.843e-05,2]
[421170070,1777189200309,-500.0,6.843e-05,2]
[421170071,1777189200345,-500.0,6.843e-05,2]
[421170072,1777189200487,-500.0,6.843e-05,2]
[421170073,1777189200523,-500.0,6.843e-05,2]
[421170074,1777189200559,-500.0,6.843e-05,2]
[421170075,1777189200594,-500.0,6.843e-05,2]
[421170076,1777189200629,-500.0,6.843e-05,2]
[421170077,1777189200663,-500.0,6.843e-05,2]
[421170078,1777189200700,-500.0,6.843e-05,2]
[421170079,1777189200735,-500.0,6.843e-05,2]
[421170080,1777189200770,-500.0,6.843e-05,2]
[421170081,1777189200805,-500.0,6.843e-05,2]
[421170082,1777189200942,-500.0,6.843e-05,2]
[421170083,1777189200978,-613.95411463,6.843e-05,2]
[421170084,1777189201741,1200.0,6.842e-05,2]
[421170085,1777189215469,-4021.0168163,6.843e-05,2]
[421170086,1777189215526,-1957.9763674,6.843e-05,2]
[421170087,1777189227458,-250.0,6.843e-05,2]
[421170088,1777189227495,-7601.0,6.844e-05,2]
[421170089,1777189231172,200.0,6.8e-05,2]
[421170090,1777189233947,-9800.01,6.844e-05,2]
[421170091,1777189234035,-10000.01,6.844e-05,2]
[421170092,1777189234150,-10000.01,6.844e-05,2]
[421170093,1777189234267,-10000.01,6.844e-05,2]
[421170094,1777189234394,-10000.01,6.844e-05,2]
[421170095,1777189234514,-10000.01,6.844e-05,2]
[421170096,1777189234654,-10000.01,6.844e-05,2]
[421170097,1777189234748,-10000.01,6.844e-05,2]
[421170098,1777189234883,-10000.01,6.844e-05,2]
[421170099,1777189234993,-10000.01,6.844e-05,2]
[421170100,1777189242890,-10000.01,6.844e-05,2]
[421170101,1777189243076,-10000.01,6.844e-05,2]
[421170102,1777189243227,-10000.01,6.844e-05,2]
[421170103,1777189243325,-10000.01,6.844e-05,2]
[421170104,1777189243431,-10000.01,6.844e-05,2]
[421170105,1777189243547,-10000.01,6.844e-05,2]
[421170106,1777189243647,-10000.01,6.844e-05,2]
[421170107,1777189243751,-10000.01,6.844e-05,2]
[421170108,1777189243866,-10000.01,6.844e-05,2]
[421170109,1777189755611,-300.0,6.705e-05,2]
[421170110,1777189755643,-240.0,6.705e-05,2]
[421170111,1777189757294,-180.4302108,6.706e-05,2]
[421170112,1777189770866,-69.5697892,6.706e-05,2]
[421170113,1777189786072,-300.0,6.706e-05,2]
[421170114,1777189786103,-1200.0,6.706e-05,2]
[421170115,1777189786133,-240.0,6.706e-05,2]
[421170116,1777189786163,-768.0,6.706e-05,2]
[421170117,1777189801225,1200.0,6.706e-05,2]
[421170118,1777189802324,-4643.581,6.707e-05,2]
[421170119,1777189802372,-712.848,6.707e-05,2]
[421170120,1777189802406,-357.797,6.707e-05,2]
[421170121,1777189816724,-150.0,6.842e-05,2]
[421170122,1777189831613,-287.06431718,6.843e-05,2]
[421170123,1777189831626,-212.93568282,6.843e-05,2]
[421170124,1777189831637,-500.0,6.843e-05,2]
[421170125,1777189831648,-182.0,6.843e-05,2]
[421170126,1777189831695,-318.0,6.843e-05,2]
[421170127,1777189831706,-230.35747105,6.843e-05,2]
[421170128,1777189831716,-500.0,6.843e-05,2]
[421170129,1777189831728,-500.0,6.843e-05,2]
[421170130,1777189831738,-500.0,6.843e-05,2]
[421170131,1777189831748,-500.0,6.843e-05,2]
[421170132,1777189831758,-500.0,6.843e-05,2]
[421170133,1777189831768,-500.0,6.843e-05,2]
[421170134,1777189831779,-500.0,6.843e-05,2]
[421170135,1777189831791,-500.0,6.843e-05,2]
[421170136,1777189831801,-500.0,6.843e-05,2]
[421170137,1777189831811,-344.7979448,6.843e-05,2]
[421170138,1777189831828,-155.2020552,6.843e-05,2]
[421170139,1777189831839,-500.0,6.843e-05,2]
[421170140,1777189831849,-500.0,6.843e-05,2]
[421170142,1777189831860,-500.0,6.843e-05,2]
[421170144,1777189831870,-500.0,6.843e-05,2]
[421170146,1777189831882,-500.0,6.843e-05,2]
[421170147,1777189831897,-500.0,6.843e-05,2]
[421170148,1777189831908,-500.0,6.843e-05,2]
[421170149,1777189831918,-500.0,6.843e-05,2]
[421170150,1777189831930,-500.0,6.843e-05,2]
[421170151,1777189831940,-500.0,6.843e-05,2]
[421170152,1777189831951,-500.0,6.843e-05,2]
[421170153,1777189831962,-500.0,6.843e-05,2]
[421170154,1777189831972,-500.0,6.843e-05,2]
[421170155,1777189831983,-500.0,6.843e-05,2]
[421170156,1777189831994,-500.0,6.843e-05,2]
[421170157,1777189832004,-500.0,6.843e-05,2]
[421170158,1777189832015,-500.0,6.843e-05,2]
[421170159,1777189832026,-500.0,6.843e-05,2]
[421170160,1777189832036,-500.0,6.843e-05,2]
[421170161,1777189832047,-500.0,6.843e-05,2]
[421170162,1777189832057,-500.0,6.843e-05,2]
[421170163,1777189832067,-500.0,6.843e-05,2]
[421170164,1777189832078,-500.0,6.843e-05,2]
[421170165,1777189832090,-500.0,6.843e-05,2]
[421170166,1777189832100,-500.0,6.843e-05,2]
[421170167,1777189832110,-500.0,6.843e-05,2]
[421170168,1777189832120,-500.0,6.843e-05,2]
[421170169,1777189832131,-500.0,6.843e-05,2]
[421170170,1777189832141,-500.0,6.843e-05,2]
[421170171,1777189832152,-500.0,6.843e-05,2]
[421170172,1777189832162,-500.0,6.843e-05,2]
[421170173,1777189832172,-500.0,6.843e-05,2]
[421170174,1777189832184,-500.0,6.843e-05,2]
[421170175,1777189832194,-500.0,6.843e-05,2]
[421170176,1777189832205,-500.0,6.843e-05,2]
[421170177,1777189832216,-500.0,6.843e-05,2]
[421170178,1777189832227,-500.0,6.843e-05,2]
[421170179,1777189832238,-500.0,6.843e-05,2]
[421170180,1777189832248,-500.0,6.843e-05,2]
[421170181,1777189832258,-500.0,6.843e-05,2]
[421170182,1777189832268,-500.0,6.843e-05,2]
[421170183,1777189832284,-500.0,6.843e-05,2]
[421170184,1777189832295,-326.51340801,6.843e-05,2]
[421170185,1777189832306,-500.0,6.843e-05,2]
[421170186,1777189832316,-500.0,6.843e-05,2]
[421170187,1777189832326,-500.0,6.843e-05,2]
[421170188,1777189832337,-500.0,6.843e-05,2]
[421170189,1777189832348,-500.0,6.843e-05,2]
[421170190,1777189832358,-500.0,6.843e-05,2]
[421170191,1777189832369,-560.02422597,6.843e-05,2]
[421170192,1777189832380,-500.0,6.843e-05,2]
[421170193,1777189832390,-500.0,6.843e-05,2]
[421170194,1777189832400,-500.0,6.843e-05,2]
[421170195,1777189832410,-500.0,6.843e-05,2]
[421170196,1777189832421,-500.0,6.843e-05,2]
[421170197,1777189832431,-500.0,6.843e-05,2]
[421170198,1777189832442,-500.0,6.843e-05,2]